[Event "Early-Titled-Tuesday-Blitz-April-23-2024"]
[Site "Chess.com"]
[Date "2024.04.23"]
[Round "4"]
[White "ChainedDowntohell"]
[Black "bubeliang"]
[Result "0-1"]
[WhiteElo "2574"]
[BlackElo "2788"]
[TimeControl "180+1"]
[EndTime "8:42:00 PDT"]
[Termination "bubeliang won by resignation"]

1. d4 {[%clk 0:03:00.9]} 1... d5 {[%clk 0:02:58.7]} 2. c4 {[%clk 0:03:00.8]}
2... e6 {[%clk 0:02:56.5]} 3. Nc3 {[%clk 0:02:59.7]} 3... Nf6 {[%clk 0:02:56]}
4. cxd5 {[%clk 0:02:59.4]} 4... exd5 {[%clk 0:02:56.9]} 5. Bg5 {[%clk
0:02:59.5]} 5... Be7 {[%clk 0:02:56.2]} 6. e3 {[%clk 0:02:59.6]} 6... c6 {[%clk
0:02:56.3]} 7. Bd3 {[%clk 0:02:59.8]} 7... O-O {[%clk 0:02:56.7]} 8. Qc2 {[%clk
0:02:59.4]} 8... h6 {[%clk 0:02:56.1]} 9. Bf4 {[%clk 0:02:59.3]} 9... Re8 {[%clk
0:02:55.3]} 10. h3 {[%clk 0:02:58.9]} 10... c5 {[%clk 0:02:49.1]} 11. Nf3 {[%clk
0:02:56.3]} 11... Nc6 {[%clk 0:02:47.6]} 12. O-O {[%clk 0:02:52.3]} 12... Nb4
{[%clk 0:02:42.6]} 13. Qd1 {[%clk 0:02:49.2]} 13... Nxd3 {[%clk 0:02:42.9]} 14.
Qxd3 {[%clk 0:02:50.1]} 14... c4 {[%clk 0:02:43.5]} 15. Qc2 {[%clk 0:02:48.3]}
15... Bd7 {[%clk 0:02:43.4]} 16. Ne5 {[%clk 0:02:45.4]} 16... b5 {[%clk
0:02:41.9]} 17. e4 {[%clk 0:02:33.3]} 17... dxe4 {[%clk 0:02:35.1]} 18. Nxe4
{[%clk 0:02:33.3]} 18... Nd5 {[%clk 0:02:34]} 19. Bg3 {[%clk 0:02:27.9]} 19...
Bf5 {[%clk 0:02:25.9]} 20. Rfe1 {[%clk 0:02:24.4]} 20... Qc8 {[%clk 0:02:22.8]}
21. Qd1 {[%clk 0:02:16.2]} 21... Bf8 {[%clk 0:02:19.6]} 22. Qf3 {[%clk
0:02:09.5]} 22... f6 {[%clk 0:02:12.5]} 23. Ng4 {[%clk 0:01:37.9]} 23... Bxe4
{[%clk 0:01:34.5]} 24. Rxe4 {[%clk 0:01:36.8]} 24... Qd7 {[%clk 0:01:34.8]} 25.
Ree1 {[%clk 0:01:15.7]} 25... Nb4 {[%clk 0:01:30.3]} 26. Qxf6 {[%clk 0:00:38.8]}
26... Qxg4 {[%clk 0:01:21.9]} 27. Qxf8+ {[%clk 0:00:35.4]} 27... Rxf8 {[%clk
0:01:14.5]} 28. hxg4 {[%clk 0:00:35.6]} 28... Nc2 {[%clk 0:01:15.4]} 29. Rac1
{[%clk 0:00:30.4]} 29... Nxe1 {[%clk 0:01:14.2]} 30. Rxe1 {[%clk 0:00:31.3]}
30... Rfe8 {[%clk 0:01:15.1]} 31. Be5 {[%clk 0:00:30.3]} 31... b4 {[%clk
0:01:15.1]} 32. Kf1 {[%clk 0:00:25.4]} 32... a5 {[%clk 0:01:12.3]} 33. Ke2
{[%clk 0:00:25.2]} 33... a4 {[%clk 0:01:12.6]} 34. Rc1 {[%clk 0:00:23.8]} 34...
Rac8 {[%clk 0:01:12.5]} 35. Ke3 {[%clk 0:00:21.9]} 35... b3 {[%clk 0:01:09.4]}
36. axb3 {[%clk 0:00:19.7]} 36... cxb3 {[%clk 0:01:09.1]} 37. Ra1 {[%clk
0:00:19.5]} 37... Rc2 {[%clk 0:01:02.7]} 38. Rxa4 {[%clk 0:00:18.4]} 38... Rxb2
{[%clk 0:01:03.1]} 39. Ra7 {[%clk 0:00:15.4]} 39... Rb1 {[%clk 0:00:56.9]} 40.
Rxg7+ {[%clk 0:00:14.3]} 40... Kf8 {[%clk 0:00:57.5]} 41. Rb7 {[%clk 0:00:13.5]}
41... Ra8 {[%clk 0:00:48]} 42. d5 {[%clk 0:00:07.4]} 42... Re8 {[%clk
0:00:38.2]} 43. Kf4 {[%clk 0:00:07.3]} 43... Rd1 {[%clk 0:00:22.9]} 44. d6
{[%clk 0:00:03.7]} 44... Rd5 {[%clk 0:00:12]} 45. Bc3 {[%clk 0:00:04.2]} 45...
Kg8 {[%clk 0:00:10]} 46. d7 {[%clk 0:00:03.3]} 46... Rd8 {[%clk 0:00:09.2]} 47.
Rxb3 {[%clk 0:00:02.6]} 47... R5xd7 {[%clk 0:00:09.8]} 48. f3 {[%clk 0:00:02.9]}
48... Rd3 {[%clk 0:00:10.3]} 49. Ra3 {[%clk 0:00:02.6]} 49... Rc8 {[%clk
0:00:10.5]} 50. Bb2 {[%clk 0:00:02]} 50... Rd2 {[%clk 0:00:10.1]} 51. Be5 {[%clk
0:00:02.1]} 51... Rxg2 {[%clk 0:00:10.1]} 52. Ra7 {[%clk 0:00:02.7]} 52... Rgc2
{[%clk 0:00:09.8]} 53. Rg7+ {[%clk 0:00:03.1]} 53... Kf8 {[%clk 0:00:10.5]} 54.
Rh7 {[%clk 0:00:03.5]} 54... R2c6 {[%clk 0:00:11.2]} 55. Kg3 {[%clk 0:00:02.6]}
55... Kg8 {[%clk 0:00:11.3]} 56. Rg7+ {[%clk 0:00:02.6]} 56... Kf8 {[%clk
0:00:11.9]} 57. Rh7 {[%clk 0:00:03.3]} 57... Re8 {[%clk 0:00:11.7]} 58. Bf4
{[%clk 0:00:03.2]} 58... Ree6 {[%clk 0:00:11.1]} 59. Ra7 {[%clk 0:00:02.7]}
59... Kg8 {[%clk 0:00:11.5]} 60. Kh4 {[%clk 0:00:02.8]} 60... Rc3 {[%clk
0:00:11.4]} 61. Kg3 {[%clk 0:00:02.5]} 61... Rd3 {[%clk 0:00:09.3]} 62. Rb7
{[%clk 0:00:02.5]} 62... Rc6 {[%clk 0:00:09.4]} 63. Re7 {[%clk 0:00:01.5]} 63...
Rcc3 {[%clk 0:00:09.3]} 64. Bxh6 {[%clk 0:00:02.2]} 64... Rxf3+ {[%clk
0:00:09.5]} 65. Kh4 {[%clk 0:00:02.9]} 65... Rh3+ {[%clk 0:00:08.1]} 66. Kg5
{[%clk 0:00:03.2]} 66... Rc5+ {[%clk 0:00:08.5]} 67. Kg6 {[%clk 0:00:01.5]}
67... Rc6+ {[%clk 0:00:08.7]} 68. Kf5 {[%clk 0:00:01.6]} 68... Rhxh6 {[%clk
0:00:08.7]} 69. g5 {[%clk 0:00:02.5]} 69... Rhd6 {[%clk 0:00:08.9]} 70. Re8+
{[%clk 0:00:01.5]} 70... Kf7 {[%clk 0:00:09.3]} 71. Ra8 {[%clk 0:00:01.6]} 71...
Rd5+ {[%clk 0:00:09.6]} 72. Kf4 {[%clk 0:00:02.2]} 72... Rc4+ {[%clk 0:00:09.4]}
73. Ke3 {[%clk 0:00:02.5]} 73... Rxg5 {[%clk 0:00:10]} 74. Ra7+ {[%clk
0:00:02.7]} 74... Ke6 {[%clk 0:00:09.8]} 75. Ra6+ {[%clk 0:00:03]} 75... Kd5
{[%clk 0:00:09.2]} 76. Ra5+ {[%clk 0:00:02.9]} 76... Rc5 {[%clk 0:00:09.9]} 77.
Ra7 {[%clk 0:00:03.8]} 77... Re5+ {[%clk 0:00:10]} 78. Kd3 {[%clk 0:00:03.9]}
78... Ke6 {[%clk 0:00:10.4]} 79. Rh7 {[%clk 0:00:03.9]} 79... Rcd5+ {[%clk
0:00:10.9]} 80. Kc4 {[%clk 0:00:03.7]} 80... Rd6 {[%clk 0:00:11.8]} 81. Rh4
{[%clk 0:00:03.3]} 81... Kd7 {[%clk 0:00:12]} 82. Rh7+ {[%clk 0:00:02.8]} 82...
Kc6 {[%clk 0:00:12.3]} 83. Rh8 {[%clk 0:00:03.7]} 83... Rc5+ {[%clk 0:00:12.2]}
84. Kb4 {[%clk 0:00:03.7]} 84... Rb5+ {[%clk 0:00:10.4]} 85. Kc4 {[%clk
0:00:04]} 85... Rb7 {[%clk 0:00:10.9]} 86. Rh5 {[%clk 0:00:03.8]} 86... Rc7
{[%clk 0:00:11.2]} 87. Kb4 {[%clk 0:00:03.5]} 87... Kb7 {[%clk 0:00:11.7]} 88.
Rb5+ {[%clk 0:00:03.6]} 88... Rb6 {[%clk 0:00:11.6]} 0-1

[Event "Early-Titled-Tuesday-Blitz-April-23-2024"]
[Site "Chess.com"]
[Date "2024.04.23"]
[Round "4"]
[White "jumpingknight20"]
[Black "Attacker_2006"]
[Result "1-0"]
[WhiteElo "2738"]
[BlackElo "2548"]
[TimeControl "180+1"]
[EndTime "8:42:06 PDT"]
[Termination "jumpingknight20 won on time"]

1. Nf3 {[%clk 0:03:00.9]} 1... d5 {[%clk 0:02:56.6]} 2. b3 {[%clk 0:03:00.8]}
2... c5 {[%clk 0:02:54.9]} 3. Bb2 {[%clk 0:03:00.7]} 3... Nc6 {[%clk 0:02:54.1]}
4. e3 {[%clk 0:03:01]} 4... Nf6 {[%clk 0:02:46.3]} 5. Bb5 {[%clk 0:03:00.3]}
5... Bd7 {[%clk 0:02:46.7]} 6. O-O {[%clk 0:02:54.2]} 6... e6 {[%clk 0:02:44.7]}
7. d4 {[%clk 0:02:52.2]} 7... cxd4 {[%clk 0:02:43.6]} 8. exd4 {[%clk 0:02:49.7]}
8... Bd6 {[%clk 0:02:42.4]} 9. c4 {[%clk 0:02:44.3]} 9... O-O {[%clk 0:02:40.9]}
10. Ne5 {[%clk 0:02:38.1]} 10... dxc4 {[%clk 0:02:33.3]} 11. bxc4 {[%clk
0:02:33.5]} 11... Qc7 {[%clk 0:02:15.9]} 12. Re1 {[%clk 0:02:26.1]} 12... Rfd8
{[%clk 0:02:08.8]} 13. Nd2 {[%clk 0:02:09.9]} 13... a6 {[%clk 0:02:00.6]} 14.
Ba4 {[%clk 0:01:34.7]} 14... Nxe5 {[%clk 0:01:54.4]} 15. dxe5 {[%clk 0:01:34.5]}
15... Bxa4 {[%clk 0:01:55.1]} 16. Qxa4 {[%clk 0:01:34.3]} 16... Bc5 {[%clk
0:01:50.7]} 17. Bc3 {[%clk 0:01:00.2]} 17... Ng4 {[%clk 0:01:39.5]} 18. Ne4
{[%clk 0:00:58.8]} 18... Bd4 {[%clk 0:01:24.3]} 19. Bxd4 {[%clk 0:00:35.2]}
19... Rxd4 {[%clk 0:01:25.2]} 20. Rac1 {[%clk 0:00:33.5]} 20... Qxe5 {[%clk
0:01:08.9]} 21. Ng3 {[%clk 0:00:16.3]} 21... Qf6 {[%clk 0:01:03]} 22. Re2 {[%clk
0:00:13.1]} 22... Rad8 {[%clk 0:00:56.3]} 23. h3 {[%clk 0:00:12.2]} 23... Qg5
{[%clk 0:00:45]} 24. Rb1 {[%clk 0:00:09]} 24... Nxf2 {[%clk 0:00:35.1]} 25. Rxf2
{[%clk 0:00:08]} 25... Qxg3 {[%clk 0:00:34.3]} 26. Rbf1 {[%clk 0:00:06.5]} 26...
R4d7 {[%clk 0:00:21]} 27. Qa5 {[%clk 0:00:04.7]} 27... Qc7 {[%clk 0:00:17.8]}
28. Qg5 {[%clk 0:00:05.2]} 28... Rf8 {[%clk 0:00:14.4]} 29. c5 {[%clk 0:00:05]}
29... Rd5 {[%clk 0:00:14.2]} 30. Qe3 {[%clk 0:00:05.2]} 30... Qxc5 {[%clk
0:00:14.6]} 31. Qe4 {[%clk 0:00:03]} 31... Qd4 {[%clk 0:00:11.4]} 32. Qb1 {[%clk
0:00:01.5]} 32... Rb5 {[%clk 0:00:10.9]} 33. Qc2 {[%clk 0:00:01.5]} 33... Rf5
{[%clk 0:00:09.5]} 34. Kh1 {[%clk 0:00:02]} 34... Rxf2 {[%clk 0:00:10]} 35. Rxf2
{[%clk 0:00:02.9]} 35... h6 {[%clk 0:00:10.7]} 36. Rd2 {[%clk 0:00:02.9]} 36...
Qa1+ {[%clk 0:00:10.8]} 37. Kh2 {[%clk 0:00:03]} 37... Qe5+ {[%clk 0:00:11.7]}
38. Kh1 {[%clk 0:00:03.1]} 38... b5 {[%clk 0:00:12.2]} 39. Rd7 {[%clk
0:00:02.8]} 39... Qa1+ {[%clk 0:00:11.7]} 40. Kh2 {[%clk 0:00:03]} 40... Qe5+
{[%clk 0:00:12.5]} 41. Kh1 {[%clk 0:00:03.6]} 41... a5 {[%clk 0:00:10.3]} 42.
Qf2 {[%clk 0:00:03.8]} 42... Qa1+ {[%clk 0:00:09.8]} 43. Kh2 {[%clk 0:00:04]}
43... Qe5+ {[%clk 0:00:10.4]} 44. Kh1 {[%clk 0:00:04.7]} 44... b4 {[%clk
0:00:10.7]} 45. Ra7 {[%clk 0:00:04.7]} 45... Qd5 {[%clk 0:00:08.3]} 46. Rc7
{[%clk 0:00:04.5]} 46... e5 {[%clk 0:00:08.4]} 47. Rc5 {[%clk 0:00:04.4]} 47...
Qd1+ {[%clk 0:00:08.9]} 48. Kh2 {[%clk 0:00:04.9]} 48... Qd8 {[%clk 0:00:08.3]}
49. Rxe5 {[%clk 0:00:04.6]} 49... Qb8 {[%clk 0:00:07.8]} 50. Qg3 {[%clk
0:00:04.7]} 50... f6 {[%clk 0:00:08.4]} 51. Rxa5 {[%clk 0:00:03.2]} 51... Qb6
{[%clk 0:00:06.3]} 52. Rd5 {[%clk 0:00:03.3]} 52... Qe6 {[%clk 0:00:06]} 53. Qb3
{[%clk 0:00:03]} 53... Kh7 {[%clk 0:00:04.8]} 54. Qd3+ {[%clk 0:00:03.1]} 54...
Kh8 {[%clk 0:00:04.6]} 55. Rb5 {[%clk 0:00:03.4]} 55... Qe7 {[%clk 0:00:04.1]}
56. Qd4 {[%clk 0:00:03.3]} 56... Re8 {[%clk 0:00:03]} 57. Rxb4 {[%clk
0:00:03.4]} 57... Qe2 {[%clk 0:00:03.6]} 58. Qf4 {[%clk 0:00:03.5]} 58... Qe7
{[%clk 0:00:03.5]} 59. a4 {[%clk 0:00:03]} 59... Qa7 {[%clk 0:00:03.9]} 60. Rc4
{[%clk 0:00:03.1]} 60... Ra8 {[%clk 0:00:04.2]} 61. Rc7 {[%clk 0:00:03.2]} 61...
Qa5 {[%clk 0:00:02.7]} 62. Qg4 {[%clk 0:00:02.9]} 62... Rg8 {[%clk 0:00:03]} 63.
Rc4 {[%clk 0:00:02.5]} 63... Qe5+ {[%clk 0:00:03.2]} 64. Qf4 {[%clk 0:00:02.8]}
64... Qe7 {[%clk 0:00:04.1]} 65. Qg3 {[%clk 0:00:03]} 65... Qa7 {[%clk
0:00:04.5]} 66. Rg4 {[%clk 0:00:03.4]} 66... Qa5 {[%clk 0:00:04.7]} 67. Qf3
{[%clk 0:00:03.8]} 67... Qe5+ {[%clk 0:00:04.2]} 68. Qf4 {[%clk 0:00:03]} 68...
Qa5 {[%clk 0:00:03.9]} 69. Qb4 {[%clk 0:00:03.4]} 69... Qa8 {[%clk 0:00:03.7]}
70. h4 {[%clk 0:00:03.3]} 70... Qc8 {[%clk 0:00:02.7]} 71. Qf4 {[%clk
0:00:03.6]} 71... Qe6 {[%clk 0:00:02.4]} 72. a5 {[%clk 0:00:03.6]} 72... Ra8
{[%clk 0:00:02]} 73. Rg3 {[%clk 0:00:03.5]} 73... Rxa5 {[%clk 0:00:01.9]} 74.
Qc7 {[%clk 0:00:03.8]} 1-0

[Event "Early-Titled-Tuesday-Blitz-April-23-2024"]
[Site "Chess.com"]
[Date "2024.04.23"]
[Round "4"]
[White "Andrey_Klymchuk"]
[Black "Iball95"]
[Result "1/2-1/2"]
[WhiteElo "2692"]
[BlackElo "2862"]
[TimeControl "180+1"]
[EndTime "8:42:10 PDT"]
[Termination "Game drawn by stalemate"]

1. e4 {[%clk 0:03:00.9]} 1... c5 {[%clk 0:02:59.8]} 2. Nf3 {[%clk 0:03:00.6]}
2... e6 {[%clk 0:03:00.4]} 3. g3 {[%clk 0:02:59.7]} 3... d5 {[%clk 0:02:58.1]}
4. exd5 {[%clk 0:02:59]} 4... exd5 {[%clk 0:02:59]} 5. Bg2 {[%clk 0:02:59.3]}
5... Nf6 {[%clk 0:02:58.9]} 6. O-O {[%clk 0:02:59.4]} 6... Nc6 {[%clk
0:02:56.7]} 7. d4 {[%clk 0:02:59.1]} 7... Be7 {[%clk 0:02:49.4]} 8. dxc5 {[%clk
0:02:58.8]} 8... Bxc5 {[%clk 0:02:50.3]} 9. Nbd2 {[%clk 0:02:54.6]} 9... O-O
{[%clk 0:02:49.7]} 10. Nb3 {[%clk 0:02:54.5]} 10... Bb6 {[%clk 0:02:46.9]} 11.
Bg5 {[%clk 0:02:54.1]} 11... Be6 {[%clk 0:02:46.4]} 12. c3 {[%clk 0:02:50.6]}
12... h6 {[%clk 0:02:46.2]} 13. Bxf6 {[%clk 0:02:44.3]} 13... Qxf6 {[%clk
0:02:47.1]} 14. Nfd4 {[%clk 0:02:43.3]} 14... Rad8 {[%clk 0:02:18]} 15. Qd2
{[%clk 0:02:28.2]} 15... Rfe8 {[%clk 0:02:17.8]} 16. Rfe1 {[%clk 0:02:27.4]}
16... Ne5 {[%clk 0:02:08.1]} 17. h3 {[%clk 0:02:22.8]} 17... Nc4 {[%clk
0:02:02.3]} 18. Qc2 {[%clk 0:02:22.2]} 18... h5 {[%clk 0:01:59.3]} 19. h4 {[%clk
0:02:11.4]} 19... a5 {[%clk 0:01:57.8]} 20. a4 {[%clk 0:02:06.4]} 20... Re7
{[%clk 0:01:49.4]} 21. Re2 {[%clk 0:02:02.2]} 21... Rde8 {[%clk 0:01:42.6]} 22.
Rae1 {[%clk 0:02:01.2]} 22... Ba7 {[%clk 0:01:11.4]} 23. Bf3 {[%clk 0:01:38.2]}
23... g6 {[%clk 0:01:04.4]} 24. Kg2 {[%clk 0:01:37.4]} 24... Bb6 {[%clk
0:00:57.5]} 25. Qc1 {[%clk 0:00:51.7]} 25... Kg7 {[%clk 0:00:53.6]} 26. Qc2
{[%clk 0:00:47.2]} 26... Nd6 {[%clk 0:00:25.2]} 27. Qd3 {[%clk 0:00:35.1]} 27...
Ne4 {[%clk 0:00:22.5]} 28. Qb5 {[%clk 0:00:30.1]} 28... Bc7 {[%clk 0:00:13.5]}
29. Nxe6+ {[%clk 0:00:29.8]} 29... fxe6 {[%clk 0:00:06.7]} 30. Bxe4 {[%clk
0:00:29.9]} 30... dxe4 {[%clk 0:00:07.6]} 31. Rxe4 {[%clk 0:00:30]} 31... Rf8
{[%clk 0:00:07.7]} 32. Qe2 {[%clk 0:00:29.9]} 32... Ref7 {[%clk 0:00:07.2]} 33.
f4 {[%clk 0:00:28.5]} 33... e5 {[%clk 0:00:07.7]} 34. Nc5 {[%clk 0:00:26.9]}
34... exf4 {[%clk 0:00:06.7]} 35. Ne6+ {[%clk 0:00:25.8]} 35... Kg8 {[%clk
0:00:07.1]} 36. Nxf4 {[%clk 0:00:26]} 36... Bxf4 {[%clk 0:00:06.7]} 37. Rxf4
{[%clk 0:00:26.2]} 37... Qc6+ {[%clk 0:00:07.4]} 38. Qe4 {[%clk 0:00:26.4]}
38... Rxf4 {[%clk 0:00:07.3]} 39. gxf4 {[%clk 0:00:26.4]} 39... Rxf4 {[%clk
0:00:07.1]} 40. Qxc6 {[%clk 0:00:26.7]} 40... bxc6 {[%clk 0:00:06.7]} 41. Kg3
{[%clk 0:00:26.1]} 41... Rxa4 {[%clk 0:00:06]} 42. Re6 {[%clk 0:00:25.9]} 42...
Rg4+ {[%clk 0:00:04.3]} 43. Kh3 {[%clk 0:00:26.2]} 43... c5 {[%clk 0:00:04.5]}
44. Rc6 {[%clk 0:00:26.3]} 44... a4 {[%clk 0:00:04.2]} 45. Rxc5 {[%clk
0:00:25.9]} 45... Kf7 {[%clk 0:00:04.8]} 46. Ra5 {[%clk 0:00:26]} 46... Rc4
{[%clk 0:00:04.8]} 47. Rb5 {[%clk 0:00:25.4]} 47... a3 {[%clk 0:00:05.2]} 48.
bxa3 {[%clk 0:00:20.9]} 48... Rxc3+ {[%clk 0:00:05.7]} 49. Kg2 {[%clk
0:00:21.4]} 49... Rxa3 {[%clk 0:00:06.4]} 50. Rc5 {[%clk 0:00:21.7]} 50... Ra4
{[%clk 0:00:06.6]} 51. Kg3 {[%clk 0:00:20.8]} 51... Re4 {[%clk 0:00:07]} 52. Rb5
{[%clk 0:00:20.3]} 52... Kf6 {[%clk 0:00:07.5]} 53. Ra5 {[%clk 0:00:20.7]} 53...
Re5 {[%clk 0:00:07.9]} 54. Ra3 {[%clk 0:00:20.8]} 54... Kf5 {[%clk 0:00:08.5]}
55. Rf3+ {[%clk 0:00:20.9]} 55... Ke6 {[%clk 0:00:09]} 56. Rf8 {[%clk
0:00:20.7]} 56... Rf5 {[%clk 0:00:08.6]} 57. Rg8 {[%clk 0:00:20.9]} 57... Kf7
{[%clk 0:00:08.7]} 58. Ra8 {[%clk 0:00:20.9]} 58... Rb5 {[%clk 0:00:09.1]} 59.
Ra6 {[%clk 0:00:21]} 59... Rb3+ {[%clk 0:00:08.1]} 60. Kg2 {[%clk 0:00:21]}
60... Re3 {[%clk 0:00:07.7]} 61. Rb6 {[%clk 0:00:20.5]} 61... Kg7 {[%clk
0:00:07]} 62. Ra6 {[%clk 0:00:20.6]} 62... Re4 {[%clk 0:00:07.4]} 63. Kg3 {[%clk
0:00:20]} 63... Rg4+ {[%clk 0:00:07.8]} 64. Kh3 {[%clk 0:00:20]} 64... Rf4
{[%clk 0:00:08.3]} 65. Rb6 {[%clk 0:00:20.3]} 65... Rf3+ {[%clk 0:00:08.5]} 66.
Kg2 {[%clk 0:00:20.3]} 66... Re3 {[%clk 0:00:08.4]} 67. Ra6 {[%clk 0:00:19.8]}
67... Kf7 {[%clk 0:00:08.8]} 68. Rb6 {[%clk 0:00:19.4]} 68... Re6 {[%clk
0:00:09.1]} 69. Rb4 {[%clk 0:00:18.9]} 69... Kf6 {[%clk 0:00:10]} 70. Rf4+
{[%clk 0:00:18.9]} 70... Ke5 {[%clk 0:00:10.2]} 71. Rf8 {[%clk 0:00:19]} 71...
Rf6 {[%clk 0:00:10.6]} 72. Ra8 {[%clk 0:00:19]} 72... Rd6 {[%clk 0:00:10.6]} 73.
Rf8 {[%clk 0:00:17.3]} 73... Ke4 {[%clk 0:00:10.5]} 74. Kg3 {[%clk 0:00:16.2]}
74... Rd3+ {[%clk 0:00:10.8]} 75. Kg2 {[%clk 0:00:16.7]} 75... Ke5 {[%clk
0:00:07.5]} 76. Rf7 {[%clk 0:00:16.1]} 76... Ra3 {[%clk 0:00:06.7]} 77. Rf8
{[%clk 0:00:16.1]} 77... Ke6 {[%clk 0:00:06.8]} 78. Rf4 {[%clk 0:00:15.1]} 78...
Ra5 {[%clk 0:00:06]} 79. Kg3 {[%clk 0:00:14.7]} 79... Re5 {[%clk 0:00:05.9]} 80.
Ra4 {[%clk 0:00:14.6]} 80... Re3+ {[%clk 0:00:04.4]} 81. Kf4 {[%clk 0:00:12.3]}
81... Rd3 {[%clk 0:00:02]} 82. Ra6+ {[%clk 0:00:10.9]} 82... Rd6 {[%clk
0:00:02.4]} 83. Rxd6+ {[%clk 0:00:10]} 83... Kxd6 {[%clk 0:00:03.3]} 84. Kg5
{[%clk 0:00:10.7]} 84... Ke7 {[%clk 0:00:04]} 85. Kxg6 {[%clk 0:00:11.2]} 85...
Kf8 {[%clk 0:00:04.9]} 86. Kxh5 {[%clk 0:00:11.7]} 86... Kg8 {[%clk 0:00:05.8]}
87. Kg6 {[%clk 0:00:12]} 87... Kh8 {[%clk 0:00:06.7]} 88. h5 {[%clk 0:00:12.7]}
88... Kg8 {[%clk 0:00:07.6]} 89. h6 {[%clk 0:00:13.6]} 89... Kh8 {[%clk
0:00:08.5]} 90. h7 {[%clk 0:00:14.5]} 1/2-1/2